fUST/lending_fUST_20250824
["ID","MTS","AMOUNT","RATE_DAILY","PERIOD"]
[381093062,1756032639334,-383.0,0.00031691,5]
[381093063,1756032639343,-500.0,0.00031691,5]
[381093064,1756032639353,-5000.0,0.00031793,4]
[381093065,1756032639362,-500.0,0.00031965,5]
[381093066,1756032639371,-609.64689851,0.00031986,17]
[381093067,1756032639381,-151.0,0.00032,10]
[381093068,1756032639390,-500.0,0.00032239,5]
[381093069,1756032639399,-720.0,0.00032249,20]
[381093070,1756032639409,-500.0,0.00032513,5]
[381093071,1756032639418,-8016.36643771,0.00032776,2]
[381093072,1756032639427,-500.0,0.00032787,5]
[381093073,1756032639437,-151.0,0.00032876,60]
[381093074,1756032639447,-151.0,0.00032876,60]
[381093075,1756032639456,-151.0,0.00032876,60]
[381093076,1756032639465,-151.0,0.00032876,60]
[381093077,1756032639474,-151.0,0.00032876,60]
[381093078,1756032639484,-278.71633022,0.00032876,60]
[381093079,1756032639493,-151.0,0.00032876,60]
[381093080,1756032639503,-1047.78,0.00032876,120]
[381093081,1756032639513,-500.0,0.00033061,5]
[381093082,1756032639522,-151.0,0.0003315,60]
[381093083,1756032639533,-500.0,0.00033335,5]
[381093084,1756032639546,-500.0,0.00033609,5]
[381093085,1756032639556,-609.64689851,0.00033712,21]
[381093086,1756032639566,-500.0,0.00033883,5]
[381093087,1756032639575,-151.0,0.00034,20]
[381093088,1756032639585,-200.88738978,0.00034157,5]
[381093089,1756032639595,-1047.78,0.00034246,120]
[381093090,1756032639604,-2519.91621681,0.00034251,2]
[381093091,1756032639615,-155.0,0.000346,120]
[381093092,1756032639625,-153.0,0.00035042,2]
[381093093,1756032639634,-153.0,0.00035042,2]
[381093094,1756032639644,-153.0,0.00035042,2]
[381093095,1756032639653,-153.0,0.00035042,2]
[381093096,1756032639663,-153.0,0.00035049,2]
[381093097,1756032639672,-153.0,0.00035049,2]
[381093098,1756032639681,-153.0,0.00035049,2]
[381093099,1756032639691,-153.0,0.00035049,2]
[381093100,1756032639700,-1332.08065119,0.00035192,2]
[381093101,1756032639710,-842.03067909,0.00035192,2]
[381093102,1756032639719,-5328.32260475,0.00035213,2]
[381093103,1756032639729,-609.64689851,0.00035439,24]
[381093104,1756032639738,-864.0,0.00035473,20]
[381093105,1756032639748,-1047.78,0.00035616,120]
[381093106,1756032639757,-53052.6762057,0.00035922,3]
[381093107,1756032639767,-5478.90114788,0.00035922,3]
[381093108,1756032639776,-217.07852671,0.00035922,3]
[381093109,1756032639785,-215.99145658,0.00035922,3]
[381093110,1756032639794,-500.0,0.00035973,5]
[381093111,1756032639804,-500.0,0.00035973,5]
[381093112,1756032639813,-500.0,0.00035973,5]
[381093113,1756032639822,-500.0,0.00035973,5]
[381093114,1756032639832,-500.0,0.00035973,5]
[381093116,1756032639842,-500.49535284,0.00035973,5]
[381093117,1756032639852,-500.0,0.00035973,5]
[381093118,1756032639861,-502.0536285,0.00035973,5]
[381093119,1756032639871,-500.0,0.00035973,5]
[381093120,1756032639880,-500.0,0.00035973,5]
[381093121,1756032639890,-500.0,0.00035973,5]
[381093122,1756032639899,-500.0,0.00035973,5]
[381093124,1756032639908,-502.97462895,0.00035973,5]
[381093126,1756032639918,-500.0,0.00035973,5]
[381093128,1756032639927,-196.97336673,0.00035973,5]
[381093130,1756032639936,-3364.75459366,0.0003598,2]
[381093131,1756032639946,-151.0,0.00036,17]
[381093132,1756032639955,-162.036588,0.00036214,15]
[381093133,1756032639964,-1000.0,0.00036521,5]
[381093134,1756032639974,-501.74330652,0.00036521,5]
[381093136,1756032639983,-508.36832381,0.00036521,5]
[381093137,1756032639992,-1000.0,0.00036521,5]
[381093138,1756032640001,-1047.78,0.00036986,120]
[381093139,1756032640011,-1500.0,0.00037068,5]
[381093141,1756032640020,-500.0,0.00037068,5]
[381093143,1756032640029,-609.64689851,0.00037166,28]
[381093145,1756032640039,-260.69,0.000376,14]
[381093147,1756032640049,-151.0,0.00038,15]
[381093149,1756032640060,-155.0,0.000382,120]
[381093151,1756032640069,-500.0,0.00038344,5]
[381093153,1756032640078,-1047.78,0.00038356,120]
[381093154,1756032640088,-2519.91621681,0.00038868,2]
[381093155,1756032640099,-609.64689851,0.00038892,32]
[381093157,1756032640108,-501.71289039,0.00038892,5]
[381093159,1756032640117,-1000.0,0.00039021,30]
[381093161,1756032640126,-223.751344,0.00039357,2]
[381093163,1756032640136,-1047.78,0.00039726,120]
[381093165,1756032640145,-53052.6762057,0.0003997,3]
[381093167,1756032640154,-5478.90114788,0.0003997,3]
[381093169,1756032640163,-500.0,0.00039973,5]
[381093171,1756032640173,-377.29421286,0.00039973,5]
[381093196,1756032640400,-500.0,0.00039973,5]
[381093198,1756032640410,-500.0,0.00039973,5]
[381093200,1756032640419,-500.0,0.00039973,5]
[381093202,1756032640428,-500.0,0.00039973,5]
[381093204,1756032640437,-500.0,0.00039973,5]
[381093205,1756032640447,-500.0,0.00039973,5]
[381093206,1756032640457,-500.0,0.00039973,5]
[381093207,1756032640467,-500.0,0.00039973,5]
[381093208,1756032640476,-500.0,0.00039973,5]
[381093209,1756032640486,-500.0,0.00039973,5]
[381093210,1756032640495,-501.20017823,0.00039973,5]
[381093211,1756032640505,-500.0,0.00039973,5]
[381093212,1756032640515,-159158.028617,0.0003998,3]
[381093213,1756032640524,-16436.7034436,0.0003998,3]
[381093214,1756032640535,-500.0,0.00039989,120]
[381093215,1756032640550,-460.0,0.00039989,120]
[381093216,1756032640559,-160.0,0.0003999,3]
[381093217,1756032640569,-53052.6762057,0.0003999,3]
[381093218,1756032640579,-10957.8022958,0.0003999,3]
[381093219,1756032640588,-99542.1675808,0.0004,30]
[381093220,1756032640598,-151.0,0.0004,16]
[381093221,1756032640607,-217.07852671,0.0004,30]
[381093223,1756032640619,-215.99145658,0.0004,30]
[381093224,1756032640629,-529.17068775,0.0004,30]
[381093225,1756032640638,-417.15472785,0.0004,30]
[381093226,1756032640648,-976.179,0.00040412,2]
[381093227,1756032640657,-2155.0,0.00040412,2]
[381093228,1756032640666,-637.0,0.00040412,2]
[381093229,1756032640676,-289.974,0.00040412,2]
[381093230,1756032640685,-412.804,0.00040412,2]
[381093231,1756032640694,-150.352,0.00040412,2]
[381093232,1756032640704,-195.869,0.00040412,2]
[381093233,1756032640715,-502.95907648,0.00040521,5]
[381093234,1756032640725,-1003.2892988,0.00040521,5]
[381093235,1756032640735,-503.27027552,0.00040521,5]
[381093236,1756032640744,-335.56434949,0.00040521,5]
[381093237,1756032640753,-500.0,0.00040521,5]
[381093238,1756032640763,-609.64689851,0.00040619,36]
[381093239,1756032640772,-179.69452289,0.00040976,24]
[381093240,1756032640782,-161.08931106,0.00041073,5]
[381093241,1756032640791,-150.0,0.00041073,5]
[381093242,1756032640800,-500.0,0.00041073,5]
[381093243,1756032640810,-5478.90114788,0.0004108,3]
[381093244,1756032640819,-5478.90114788,0.0004109,3]
[381093245,1756032640828,-1047.78,0.00041095,120]
[381093246,1756032640838,-7360.67,0.000411,14]
[381093247,1756032640847,-151.0,0.000411,14]
[381093248,1756032640857,-151.0,0.000411,120]
[381093249,1756032640866,-151.0,0.000411,120]
[381093250,1756032640878,-151.0,0.000411,120]
[381093251,1756032640887,-152.387388,0.000411,120]
[381093252,1756032640896,-151.0,0.000411,120]
[381093253,1756032640906,-151.0,0.000411,120]
[381093254,1756032640916,-151.0,0.000411,120]
[381093255,1756032640927,-501.31030205,0.00041247,10]
[381093256,1756032640937,-350.44851005,0.00041621,10]
[381093257,1756032640946,-1000.0,0.00041621,10]
[381093258,1756032640956,-155.0,0.000417,120]
[381093259,1756032640966,-500.94579254,0.00041708,10]
[381093260,1756032640975,-150.0,0.00041708,10]
[381093261,1756032640985,-151.0,0.00042,12]
[381093262,1756032640994,-217.07852671,0.00042,10]
[381093263,1756032641004,-217.07852671,0.00042,120]
[381093264,1756032641013,-215.99145658,0.00042,10]
[381093265,1756032641023,-215.99145658,0.00042,120]
[381093266,1756032641032,-529.17068775,0.00042,10]
[381093267,1756032641042,-529.17068775,0.00042,120]
[381093268,1756032641052,-12698.53451425,0.00042,120]
[381093269,1756032641062,-8016.3664377,0.00042038,10]
[381093270,1756032641071,-1002.84909502,0.00042168,10]
[381093271,1756032641082,-5000.0,0.000422,120]
[381093272,1756032641091,-400.0,0.00042256,10]
[381093273,1756032641102,-609.64689851,0.00042345,39]
[381093274,1756032641111,-647.66914228,0.00042364,8]
[381093275,1756032641121,-1047.78,0.00042465,120]
[381093276,1756032641130,-500.0,0.00042573,10]
[381093277,1756032641139,-500.0,0.00042573,10]
[381093278,1756032641149,-500.0,0.00042573,2]
[381093279,1756032641159,-151.0,0.00042889,2]
[381093280,1756032641168,-291.24052599,0.00042889,2]
[381093281,1756032641177,-500.0,0.00042889,2]
[381093282,1756032641187,-151.0,0.00042889,2]
[381093283,1756032641197,-528.9285874,0.00042889,2]
[381093284,1756032641206,-151.0,0.00042889,2]
[381093285,1756032641216,-151.0,0.00042889,2]
[381093286,1756032641225,-151.0,0.00042889,2]
[381093287,1756032641235,-201.93286099,0.00042889,2]
[381093288,1756032641244,-151.0,0.00042889,2]
[381093289,1756032641253,-151.0,0.00042889,2]
[381093290,1756032641263,-267.40561569,0.00042889,2]
[381093291,1756032641272,-151.0,0.00042889,2]
[381093292,1756032641282,-151.0,0.00042889,2]
[381093293,1756032641291,-151.0,0.00042889,2]
[381093294,1756032641301,-151.0,0.00042889,2]
[381093295,1756032641311,-151.0,0.00042889,2]
[381093296,1756032641320,-151.0,0.00042889,2]
[381093297,1756032641329,-151.0,0.00042889,2]
[381093298,1756032641339,-151.0,0.00042889,2]
[381093299,1756032641349,-151.0,0.00042889,2]
[381093300,1756032641358,-250.0,0.00042889,2]
[381093301,1756032641370,-250.0,0.00042889,2]
[381093302,1756032641379,-250.0,0.00042889,2]
[381093303,1756032641389,-250.0,0.00042889,2]
[381093304,1756032641398,-250.0,0.00042889,2]
[381093305,1756032641408,-250.0,0.00042889,2]
[381093306,1756032641418,-250.0,0.00042889,2]
[381093307,1756032641427,-250.0,0.00042889,2]
[381093308,1756032641438,-250.0,0.00042889,2]
[381093309,1756032641448,-250.0,0.00042889,2]
[381093310,1756032641457,-250.0,0.00042889,2]
[381093311,1756032641467,-250.0,0.00042889,2]
[381093312,1756032641477,-152.832049,0.00042889,120]
[381093313,1756032641486,-151.0,0.00042889,15]
[381093314,1756032641496,-246.353431,0.00042889,120]
[381093315,1756032641505,-151.0,0.00042889,120]
[381093316,1756032641515,-151.0,0.00042889,120]
[381093317,1756032641526,-151.0,0.00042889,120]
[381093318,1756032641536,-151.0,0.00042889,120]
[381093319,1756032641547,-151.0,0.00042889,120]
[381093320,1756032641557,-151.0,0.00042889,120]
[381093321,1756032641567,-599.909499,0.00042889,120]
[381093322,1756032641577,-151.0,0.00042889,120]
[381093323,1756032641587,-151.0,0.00042889,120]
[381093324,1756032641596,-599.909499,0.00042889,120]
[381093325,1756032641606,-151.0,0.00042889,120]
[381093326,1756032641617,-599.909499,0.00042889,120]
[381093327,1756032641626,-599.909499,0.00042889,120]
[381093328,1756032641636,-151.0,0.00042889,120]
[381093329,1756032641645,-260.69,0.000429,14]
[381093330,1756032641654,-1000.0,0.00042923,30]
[381093331,1756032641664,-244.0,0.00042923,30]
[381093332,1756032641673,-150.0,0.00043061,7]
[381093333,1756032641683,-501.03600475,0.00043121,10]
[381093334,1756032641692,-1000.0,0.00043121,2]
[381093335,1756032641701,-5000.0,0.000432,120]
[381093336,1756032641711,-10957.8022958,0.00043207,3]
[381093337,1756032641720,-151.0,0.00043217,120]
[381093338,1756032641730,-151.0,0.00043217,120]
[381093339,1756032641739,-151.0,0.00043217,120]
[381093340,1756032641749,-445.575333,0.00043217,120]
[381093341,1756032641759,-151.0,0.00043217,120]
[381093342,1756032641769,-151.0,0.00043217,120]
[381093343,1756032641779,-151.0,0.00043217,120]
[381093344,1756032641788,-151.0,0.00043217,120]
[381093345,1756032641798,-151.0,0.00043217,120]
[381093346,1756032641808,-151.0,0.00043217,120]
[381093347,1756032641818,-151.0,0.00043217,120]
[381093348,1756032641828,-151.0,0.00043217,120]
[381093349,1756032641837,-151.0,0.00043217,120]
[381093350,1756032641847,-151.0,0.00043217,120]
[381093351,1756032641857,-151.0,0.00043217,120]
[381093352,1756032641867,-151.0,0.00043217,120]
[381093353,1756032641876,-151.0,0.00043217,120]
[381093354,1756032641886,-151.0,0.00043217,120]
[381093355,1756032641895,-263.146027,0.00043217,120]
[381093356,1756032641905,-263.146027,0.00043217,120]
[381093357,1756032641915,-263.146027,0.00043217,120]
[381093358,1756032641925,-151.0,0.00043217,120]
[381093359,1756032641934,-263.146027,0.00043217,120]
[381093360,1756032641944,-214.713538,0.00043217,120]
[381093361,1756032641953,-151.0,0.00043217,120]
[381093362,1756032641963,-214.713538,0.00043217,120]
[381093363,1756032641972,-151.0,0.00043217,120]
[381093364,1756032641981,-151.0,0.00043217,120]
[381093365,1756032641991,-214.713538,0.00043217,120]
[381093366,1756032642000,-151.0,0.00043217,120]
[381093367,1756032642010,-214.713538,0.00043217,120]
[381093368,1756032642020,-178.891222,0.00043217,120]
[381093369,1756032642029,-178.891222,0.00043217,120]
[381093370,1756032642039,-178.891222,0.00043217,120]
[381093371,1756032642048,-178.891222,0.00043217,120]
[381093372,1756032642059,-174.81553,0.00043217,120]
[381093373,1756032642068,-174.81553,0.00043217,120]
[381093374,1756032642078,-234.387578,0.00043217,14]
[381093375,1756032642087,-151.0,0.00043217,120]
[381093376,1756032642097,-174.81553,0.00043217,120]
[381093377,1756032642107,-174.81553,0.00043217,120]
[381093378,1756032642117,-151.161939,0.00043217,120]
[381093379,1756032642126,-398.14674,0.00043217,120]
[381093380,1756032642135,-398.14674,0.00043217,120]
[381093381,1756032642145,-398.14674,0.00043217,120]
[381093382,1756032642155,-398.14674,0.00043217,120]
[381093383,1756032642164,-152.191598,0.00043217,120]
[381093384,1756032642174,-152.191598,0.00043217,120]
[381093385,1756032642183,-152.191598,0.00043217,120]
[381093386,1756032642192,-167.485033,0.00043217,120]
[381093387,1756032642202,-152.191598,0.00043217,120]
[381093388,1756032642211,-151.0,0.00043217,120]
[381093389,1756032642221,-151.0,0.00043217,120]
[381093390,1756032642231,-237.598298,0.00043217,30]
[381093391,1756032642241,-151.0,0.00043217,120]
[381093392,1756032642250,-237.598298,0.00043217,30]
[381093393,1756032642259,-237.598298,0.00043217,30]
[381093394,1756032642271,-237.598298,0.00043217,30]
[381093395,1756032642280,-151.0,0.00043217,120]
[381093396,1756032642290,-151.0,0.00043217,120]
[381093397,1756032642299,-151.0,0.00043217,120]
[381093398,1756032642308,-151.0,0.00043217,120]
[381093399,1756032642318,-151.0,0.00043217,120]
[381093400,1756032642328,-151.0,0.00043217,120]
[381093401,1756032642337,-151.0,0.00043217,120]
[381093402,1756032642347,-973.0,0.00043412,2]
[381093403,1756032642356,-2155.0,0.00043412,2]
[381093404,1756032642365,-637.0,0.00043412,2]
[381093405,1756032642374,-408.0,0.00043412,2]
[381093406,1756032642384,-150.0,0.00043412,2]
[381093407,1756032642393,-2519.91621681,0.00043484,2]
[381093408,1756032642403,-300.9704624,0.00043609,7]
[381093409,1756032642620,-2897.79213706,0.0004364,28]
[381093410,1756032642629,-1500.0,0.00043668,2]
[381093411,1756032642639,-1000.0,0.000438,90]
[381093412,1756032642648,-1047.78,0.00043835,120]
[381093413,1756032642657,-151.0,0.00044,20]
[381093414,1756032642666,-609.64689851,0.00044072,43]
[381093415,1756032642675,-5000.0,0.000442,120]
[381093416,1756032642684,-1000.0,0.00044216,2]
[381093417,1756032642695,-209.40437684,0.00044258,2]
[381093418,1756032642704,-508.72412115,0.00044387,10]
[381093419,1756032642713,-2200.0,0.00044747,14]
[381093420,1756032642723,-1001.46916508,0.00044946,15]
[381093421,1756032642733,-1000.0,0.00044999,120]
[381093422,1756032642742,-5000.0,0.000452,120]
[381093423,1756032642752,-1047.78,0.00045205,120]
[381093424,1756032642761,-160.0,0.00045232,3]
[381093425,1756032642775,-7360.67,0.000453,14]
[381093426,1756032642785,-155.0,0.000453,120]
[381093427,1756032642795,-217.15233878,0.00045627,2]
[381093429,1756032642805,-609.64689851,0.00045798,47]
[381093432,1756032642815,-10957.8022958,0.00045892,4]
[381093435,1756032642825,-151.0,0.00045902,120]
[381093436,1756032642835,-151.0,0.00045912,120]
[381093437,1756032642845,-151.0,0.00045912,120]
[381093439,1756032642855,-151.0,0.00045912,120]
[381093440,1756032642864,-151.0,0.00045912,120]
[381093441,1756032642874,-151.0,0.00045912,120]
[381093442,1756032642883,-151.0,0.00045912,120]
[381093443,1756032642893,-151.0,0.00045912,120]
[381093445,1756032642902,-151.0,0.00045912,120]
[381093446,1756032642911,-151.0,0.00045912,120]
[381093447,1756032642920,-151.0,0.00045912,120]
[381093448,1756032642930,-262.66069,0.00045912,120]
[381093449,1756032642939,-151.0,0.00045912,120]
[381093450,1756032642948,-151.0,0.00046,22]
[381093451,1756032642957,-217.07852671,0.00046,120]
[381093452,1756032642967,-215.99145658,0.00046,120]
[381093453,1756032642976,-5000.0,0.000462,120]
[381093454,1756032642985,-1000.0,0.00046301,120]
[381093455,1756032642994,-1000.0,0.00046301,120]
[381093456,1756032643003,-1000.0,0.00046301,120]
[381093457,1756032643012,-973.0,0.00046412,2]
[381093458,1756032643023,-1285.551,0.00046412,2]
[381093459,1756032643033,-408.0,0.00046412,2]
[381093460,1756032643042,-1047.78,0.00046575,120]
[381093461,1756032643052,-325.38814478,0.00046996,2]
[381093462,1756032643061,-2897.79213706,0.00047142,28]
[381093463,1756032643070,-5041.0,0.000472,120]
[381093464,1756032643079,-1000.0,0.00047215,60]
[381093465,1756032643089,-492.0,0.00047215,60]
[381093466,1756032643099,-1000.0,0.00047365,120]
[381093467,1756032643108,-1000.0,0.00047365,120]
[381093468,1756032643118,-609.64689851,0.00047525,50]
[381093469,1756032643127,-180.28,0.000476,7]
[381093470,1756032643136,-500.0,0.00047714,10]
[381093471,1756032643146,-500.0,0.00047714,10]
[381093473,1756032643155,-500.71943308,0.00047714,10]
[381093475,1756032643164,-1000.0,0.00047918,120]
[381093476,1756032643174,-1047.78,0.00047945,120]
[381093477,1756032643183,-5478.90114788,0.0004799,4]
[381093479,1756032643192,-1000.0,0.00047999,120]
[381093481,1756032643202,-260.69,0.00048,14]
[381093483,1756032643211,-151.0,0.00048,29]
[381093485,1756032643220,-11926.6460914,0.00048,120]
[381093487,1756032643231,-164.0,0.00048,90]
[381093489,1756032643240,-163.0,0.00048,90]
[381093491,1756032643250,-162.036588,0.00048027,7]
[381093493,1756032643259,-480.4621638,0.00048082,30]
[381093495,1756032643269,-2519.91621681,0.000481,2]
[381093497,1756032643279,-5000.0,0.000482,120]
[381093499,1756032643288,-3097.9071,0.000482,120]
[381093501,1756032643298,-500.86406171,0.00048262,10]
[381093503,1756032643307,-1000.0,0.00048262,10]
[381093505,1756032643317,-500.0,0.00048359,60]
[381093507,1756032643327,-500.0,0.00048393,30]
[381093509,1756032643337,-7360.67,0.000484,14]
[381093511,1756032643347,-500.0,0.00048458,30]
[381093513,1756032643356,-5478.90114788,0.0004849,4]
[381093515,1756032643365,-301.6841018,0.00048493,30]
[381093517,1756032643375,-160.8718701,0.00048493,30]
[381093519,1756032643384,-587.839524,0.00048493,30]
[381093521,1756032643394,-19811.33859599,0.000485,120]
[381093523,1756032643403,-500.0,0.00048514,30]
[381093525,1756032643413,-500.0,0.00048602,30]
[381093527,1756032643422,-161.0055628,0.00048767,30]
[381093529,1756032643432,-171.6983317,0.00048767,30]
[381093531,1756032643442,-500.0,0.00048776,30]
[381093533,1756032643451,-500.0,0.00048795,30]
[381093535,1756032643461,-324.51,0.00048818,84]
[381093537,1756032643471,-155.0,0.000489,120]
[381093539,1756032643480,-500.0,0.00048907,60]
[381093541,1756032643489,-5000.0,0.00049,120]
[381093543,1756032643499,-500.0,0.00049032,30]
[381093545,1756032643509,-392.25,0.00049152,14]
[381093547,1756032643519,-724.86801381,0.00049184,30]
[381093549,1756032643529,-500.0,0.00049186,30]
[381093551,1756032643541,-501.06389529,0.00049191,30]
[381093553,1756032643551,-4232.57188787,0.000492,120]
[381093555,1756032643560,-5000.0,0.000492,120]
[381093557,1756032643569,-5000.0,0.000492,120]
[381093559,1756032643579,-376.10236133,0.00049248,120]
[381093561,1756032643589,-609.64689851,0.00049251,54]
[381093563,1756032643598,-150.0,0.000493,21]
[381093565,1756032643608,-21915.6045915,0.00049305,4]
[381093567,1756032643618,-151.0,0.00049315,120]
[381093569,1756032643628,-151.0,0.00049315,120]
[381093571,1756032643637,-197.860276,0.00049315,120]
[381093573,1756032643646,-151.0,0.00049315,120]
[381093575,1756032643655,-151.0,0.00049315,120]
[381093577,1756032643665,-151.0,0.00049315,120]
[381093579,1756032643675,-151.0,0.00049315,120]
[381093581,1756032643684,-151.0,0.00049315,120]
[381093583,1756032643694,-151.0,0.00049315,120]
[381093584,1756032643704,-151.0,0.00049315,120]
[381093586,1756032643714,-151.0,0.00049315,120]
[381093588,1756032643723,-151.0,0.00049315,120]
[381093590,1756032643733,-151.0,0.00049315,120]
[381093592,1756032643742,-445.575333,0.00049315,120]
[381093594,1756032643751,-176.218917,0.00049315,120]
[381093596,1756032643761,-151.0,0.00049315,120]
[381093598,1756032643773,-151.0,0.00049315,120]
[381093600,1756032643783,-151.0,0.00049315,120]
[381093602,1756032643792,-151.0,0.00049315,120]
[381093604,1756032643801,-151.0,0.00049315,120]
[381093606,1756032643810,-151.0,0.00049315,120]
[381093608,1756032643820,-151.0,0.00049315,120]
[381093610,1756032643829,-151.0,0.00049315,120]
[381093612,1756032643838,-151.0,0.00049315,120]
[381093614,1756032643847,-255.274982,0.00049315,120]
[381093616,1756032643857,-1047.78,0.00049315,120]
[381093618,1756032643866,-263.146027,0.00049315,120]
[381093620,1756032643876,-263.146027,0.00049315,120]
[381093622,1756032643886,-263.146027,0.00049315,120]
[381093624,1756032643896,-151.0,0.00049315,120]
[381093626,1756032643906,-263.146027,0.00049315,120]
[381093628,1756032643916,-214.713538,0.00049315,120]
[381093630,1756032643926,-151.0,0.00049315,120]
[381093632,1756032643935,-214.713538,0.00049315,120]
[381093634,1756032643945,-151.0,0.00049315,120]
[381093636,1756032643954,-151.0,0.00049315,120]
[381093638,1756032643964,-214.713538,0.00049315,120]
[381093640,1756032643974,-238.002688,0.00049315,120]
[381093642,1756032643983,-214.713538,0.00049315,120]
[381093644,1756032643992,-178.891222,0.00049315,120]
[381093646,1756032644001,-178.891222,0.00049315,120]
[381093648,1756032644011,-178.891222,0.00049315,120]
[381093650,1756032644021,-178.891222,0.00049315,120]
[381093652,1756032644031,-174.81553,0.00049315,120]
[381093654,1756032644040,-174.81553,0.00049315,120]
[381093656,1756032644050,-174.81553,0.00049315,120]
[381093658,1756032644059,-174.81553,0.00049315,120]
[381093660,1756032644069,-398.14674,0.00049315,120]
[381093662,1756032644078,-398.14674,0.00049315,120]
[381093664,1756032644087,-398.14674,0.00049315,120]
[381093666,1756032644097,-398.14674,0.00049315,120]
[381093668,1756032644106,-152.191598,0.00049315,120]
[381093670,1756032644120,-152.191598,0.00049315,120]
[381093672,1756032644129,-152.191598,0.00049315,120]
[381093674,1756032644139,-152.191598,0.00049315,120]
[381093676,1756032644148,-301.465158,0.00049315,120]
[381093678,1756032644157,-237.598298,0.00049315,30]
[381093680,1756032644167,-151.0,0.00049315,120]
[381093682,1756032644176,-237.598298,0.00049315,30]
[381093684,1756032644185,-237.598298,0.00049315,30]
[381093686,1756032644194,-237.598298,0.00049315,30]
[381093688,1756032644204,-151.0,0.00049315,120]
[381093690,1756032644213,-151.0,0.00049315,120]
[381093692,1756032644223,-151.0,0.00049315,120]
[381093694,1756032644238,-151.0,0.00049315,120]
[381093697,1756032644253,-151.0,0.00049315,120]
[381093699,1756032644263,-198.497244,0.00049315,120]
[381093701,1756032644273,-7662.31,0.00049315,120]
[381093702,1756032644282,-7662.31,0.00049315,120]
[381093705,1756032644291,-7662.31,0.00049315,120]
[381093707,1756032644301,-7662.31,0.00049315,120]
[381093709,1756032644311,-7662.31,0.00049315,120]
[381093711,1756032644321,-7662.31,0.00049315,120]
[381093713,1756032644330,-7662.31,0.00049315,120]
[381093715,1756032644340,-7662.31,0.00049315,120]
[381093717,1756032644350,-7662.31,0.00049315,120]
[381093719,1756032644359,-7662.31,0.00049315,120]
[381093721,1756032644368,-7662.31,0.00049315,120]
[381093722,1756032644377,-7662.31,0.00049315,120]
[381093724,1756032644387,-7662.31,0.00049315,120]
[381093727,1756032644398,-7662.31,0.00049315,120]
[381093728,1756032644407,-7662.31,0.00049315,120]
[381093730,1756032644417,-7662.31,0.00049315,120]
[381093732,1756032644426,-7662.31,0.00049315,120]
[381093734,1756032644436,-7662.31,0.00049315,120]
[381093736,1756032644445,-7662.31,0.00049315,120]
[381093738,1756032644454,-151.0,0.00049315,15]
[381093740,1756032644464,-7662.31,0.00049315,120]
[381093742,1756032644474,-7662.31,0.00049315,120]
[381093744,1756032644484,-7662.31,0.00049315,120]
[381093746,1756032644494,-7662.31,0.00049315,120]
[381093748,1756032644504,-7662.46279138,0.00049315,120]
[381093767,1756032644514,-151.0,0.00049315,120]
[381093770,1756032644706,-151.0,0.00049315,120]
[381093772,1756032644716,-151.0,0.00049315,120]
[381093774,1756032644726,-151.0,0.00049315,120]
[381093776,1756032644736,-151.0,0.00049315,120]
[381093778,1756032644746,-599.909499,0.00049315,120]
[381093780,1756032644755,-151.0,0.00049315,120]